bitfinex-derivatives/quotes_SOLF0:USTF0_20260222
["timestamp","ask_amount","ask_price","bid_price","bid_amount"]
[1771791274161,14.52436781,83.082,83.041,3.91413948]
[1771791275468,2.59598651,83.08,83.041,3.91413948]
[1771791276461,6.28335432,83.08,83.041,3.91413948]
[1771791277868,3.68736781,83.079,83.041,3.91413948]
[1771791279169,3.99487317,83.069,83.02,10.845]
[1771791279370,3.99487317,83.069,83.021,3.9303814]
[1771791284773,3.99487317,83.059,83.021,3.9303814]
[1771791287769,3.99487317,83.049,83.001,3.9303814]
[1771791288871,3.99487317,83.049,83.003,3.9303814]
[1771791289072,3.99487317,83.07,83.011,3.9303814]
[1771791289372,2.59598651,83.06,83.011,3.9303814]
[1771791290671,3.99487317,83.069,83.021,3.9303814]
[1771791291774,10.8384,83.071,83.021,3.9303814]
[1771791291775,3.99487317,83.059,83.021,3.9303814]
[1771791300473,3.99487317,83.086,83.041,3.9303814]
[1771791301674,3.99487317,83.086,83.042,10.8421]
[1771791301978,3.99487317,83.086,83.043,3.9303814]
[1771791302179,3.99487317,83.079,83.043,3.9303814]
[1771791302777,3.99487317,83.089,83.043,3.9303814]
[1771791303083,3.99487317,83.089,83.051,3.9303814]
[1771791305481,3.99487317,83.105,83.051,3.9303814]
[1771791305675,3.99487317,83.103,83.051,3.9303814]
[1771791306781,2.59890763,83.1,83.051,3.9303814]
[1771791307282,3.99487317,83.099,83.051,3.9303814]
[1771791311790,3.69399383,83.089,83.051,3.9303814]
[1771791312286,3.0,83.109,83.051,3.9303814]
[1771791312287,3.69399383,83.099,83.051,3.9303814]
[1771791320284,3.69399383,83.099,83.052,3.70045423]
[1771791321998,3.69399383,83.099,83.054,3.70045423]
[1771791342815,3.69399383,83.099,83.056,3.79960282]
[1771791349526,3.69399383,83.099,83.063,3.79960282]
[1771791356329,3.69399383,83.099,83.066,3.79960282]
[1771791358328,3.69399383,83.099,83.068,3.79960282]
[1771791361428,3.69399383,83.099,83.008,36.12]
[1771791361429,2.59615482,83.12,83.071,3.79960282]
[1771791361628,8.95990202,83.119,83.071,3.79960282]
[1771791361823,8.95990202,83.118,83.071,3.79960282]
[1771791362027,8.95990202,83.117,83.071,3.79960282]
[1771791362232,2.59615482,83.12,83.071,3.79960282]
[1771791362530,8.95787538,83.119,83.071,3.79960282]
[1771791362731,8.95787538,83.118,83.078,3.79960282]
[1771791362926,8.95787538,83.117,83.078,3.79960282]
[1771791363125,2.59615482,83.12,83.078,3.79960282]
[1771791363328,1.98276614,83.118,83.078,3.79960282]
[1771791363528,1.98276614,83.116,83.078,3.79960282]
[1771791369134,2.59615482,83.11,83.078,3.79960282]
[1771791371038,1.98276614,83.116,83.081,3.91150175]
[1771791384840,3.0,83.135,83.085,3.70439349]
[1771791385048,2.02687134,83.145,83.101,3.70439349]
[1771791385241,187.44796864,83.141,83.101,3.70439349]
[1771791385548,2.59615482,83.16,83.125,3.70439349]
[1771791385735,2.59615482,83.15,83.125,3.70439349]
[1771791386339,2.02687134,83.149,83.106,3.70439349]
[1771791386944,4.80652766,83.14,83.106,3.70439349]
[1771791387144,2.21037284,83.139,83.106,3.70439349]
[1771791388541,2.21037284,83.129,83.09,14.54019349]
[1771791388747,2.21037284,83.129,83.091,3.70439349]
[1771791389749,2.21037284,83.129,83.095,3.70439349]
[1771791390338,2.59615482,83.12,83.095,3.70439349]
[1771791390543,2.59615482,83.12,83.085,3.70439349]
[1771791391652,2.24675295,83.129,83.085,3.70439349]
[1771791392550,2.24675295,83.129,83.094,3.70439349]
[1771791395054,2.14738539,83.135,83.094,3.70439349]
[1771791396854,2.59615482,83.13,83.094,3.70439349]
[1771791397451,2.14286234,83.129,83.081,3.70439349]
[1771791397658,2.14286234,83.119,83.071,3.70439349]
[1771791399647,2.14286234,83.119,83.073,3.98684351]
[1771791409957,2.59615482,83.13,83.081,3.98684351]
[1771791410161,2.10597006,83.129,83.081,3.98684351]
[1771791411667,2.10597006,83.129,83.021,168.6978]
[1771791411668,10.8297,83.138,83.091,3.98684351]
[1771791411964,2.08254525,83.137,83.091,3.98684351]
[1771791414462,2.09301092,83.134,83.091,3.98684351]
[1771791415667,2.08941435,83.132,83.091,3.98684351]
[1771791415863,2.59615482,83.13,83.091,3.98684351]
[1771791418977,4.69122695,83.13,83.091,3.98684351]
[1771791419672,2.09507213,83.129,83.091,3.98684351]
[1771791420869,3.0,83.142,83.1,2.59615482]
[1771791421071,10.8278,83.152,83.05,21.6822]
[1771791421072,2.10385959,83.149,83.111,3.98684351]
[1771791422269,2.10385959,83.159,83.111,3.98684351]
[1771791422475,2.10385959,83.159,83.121,3.98684351]
[1771791422676,2.10385959,83.159,83.073,36.12]
[1771791422677,2.10385959,83.171,83.131,3.98684351]
[1771791423173,2.11657919,83.185,83.131,3.98684351]
[1771791423775,2.11657919,83.18,83.131,3.98684351]
[1771791424072,2.11657919,83.18,83.141,3.98684351]
[1771791425172,4.70803497,83.18,83.141,3.98684351]
[1771791426675,10.8241,83.181,83.141,3.98684351]
[1771791426980,259.85338701,83.186,83.141,3.98684351]
[1771791428380,4.77599276,83.19,83.141,3.98684351]
[1771791430680,2.76711108,83.189,83.141,3.98684351]
[1771791435076,3.0,83.213,83.151,3.67486638]
[1771791435077,2.6861476,83.199,83.151,3.67486638]
[1771791441793,2.6861476,83.199,83.154,3.67486638]
[1771791442089,2.59145578,83.21,83.161,3.67486638]
[1771791443183,2.59145578,83.22,83.172,3.67486638]
[1771791443583,2.73602426,83.219,83.172,3.67486638]
[1771791445787,2.7375142,83.209,83.172,3.67486638]
[1771791451890,2.7375142,83.209,83.173,10.8251]
[1771791452193,2.7375142,83.209,83.174,3.67486638]
[1771791480711,2.59145578,83.2,83.174,3.67486638]
[1771791480912,2.69196619,83.199,83.162,4.02539315]
[1771791482812,2.63139154,83.189,83.153,4.02539315]
[1771791483115,2.59145578,83.17,83.144,4.02539315]
[1771791483318,2.63139154,83.179,83.144,4.02539315]
[1771791484915,5.17631747,83.19,83.144,4.02539315]
[1771791485715,5.17631747,83.19,83.146,4.02539315]
[1771791485917,2.58490265,83.189,83.146,4.02539315]
[1771791486521,2.59141482,83.18,83.146,4.02539315]
[1771791489019,2.55451061,83.169,83.137,3.95253305]
[1771791491025,2.55907396,83.179,83.137,3.95253305]
[1771791491528,2.59141482,83.19,83.141,3.95253305]
[1771791492818,2.59141482,83.19,83.142,3.95253305]
[1771791496628,2.59141482,83.19,83.144,4.03266849]
[1771791496922,2.55907396,83.198,83.151,4.03266849]
[1771791497822,2.55907396,83.198,83.154,4.03266849]
[1771791498729,2.55907396,83.198,83.161,4.03266849]
[1771791499331,2.55609214,83.208,83.163,4.03266849]
[1771791500829,2.55609214,83.208,83.166,4.03266849]
[1771791501330,2.54199648,83.217,83.171,4.03266849]
[1771791502736,2.54199648,83.217,83.173,4.03266849]
[1771791504336,2.54199648,83.217,83.175,4.03266849]
[1771791505735,2.54199648,83.217,83.177,4.03266849]
[1771791527752,2.53486033,83.227,83.181,3.80661782]
[1771791528852,2.53486033,83.227,83.184,3.80661782]
[1771791537865,5.08295822,83.22,83.184,3.80661782]
[1771791538064,2.4915434,83.219,83.184,3.80661782]
[1771791561488,2.51328933,83.228,83.184,3.80661782]
[1771791561687,2.51328933,83.226,83.184,3.80661782]
[1771791561885,2.58867084,83.22,83.184,3.80661782]
[1771791565292,2.51328933,83.224,83.184,3.80661782]
[1771791565488,2.41873811,83.235,83.191,3.66646133]
[1771791565694,8.93844616,83.234,83.191,3.66646133]
[1771791565889,8.93844616,83.233,83.191,3.66646133]
[1771791566092,8.93844616,83.232,83.191,3.66646133]
[1771791566286,8.93844616,83.231,83.191,3.66646133]
[1771791566495,2.41873811,83.241,83.191,3.66646133]
[1771791566797,2.52210178,83.239,83.192,3.66646133]
[1771791566997,8.93843201,83.238,83.192,3.66646133]
[1771791567296,8.93843201,83.237,83.192,3.66646133]
[1771791567496,8.93843201,83.236,83.192,3.66646133]
[1771791567696,8.93843201,83.235,83.192,3.66646133]
[1771791567996,8.93843201,83.234,83.192,3.66646133]
[1771791568196,8.93843201,83.233,83.192,3.66646133]
[1771791568498,8.93843201,83.232,83.192,3.66646133]
[1771791568690,8.93843201,83.231,83.192,3.66646133]
[1771791569000,2.52210178,83.239,83.192,3.66646133]
[1771791569197,8.93856779,83.238,83.192,3.66646133]
[1771791569498,8.93856779,83.237,83.192,3.66646133]
[1771791569698,8.93856779,83.236,83.2,2.58867084]
[1771791569900,2.52210178,83.239,83.201,3.66646133]
[1771791570394,2.51859754,83.249,83.211,3.66646133]
[1771791573398,2.58867084,83.23,83.193,3.66646133]
[1771791573702,2.58867084,83.22,83.193,3.66646133]
[1771791574404,2.43721986,83.229,83.195,3.66646133]
[1771791574606,5.0258907,83.24,83.195,3.66646133]
[1771791575001,2.51340691,83.239,83.195,3.66646133]
[1771791575805,2.51340691,83.239,83.197,3.66646133]
[1771791579004,2.58867084,83.25,83.203,3.7788611]
[1771791579601,4.96452561,83.25,83.203,3.7788611]
[1771791579810,2.37585477,83.249,83.203,3.7788611]
[1771791580812,2.37585477,83.249,83.205,3.7788611]
[1771791583015,2.58867084,83.24,83.205,3.7788611]
[1771791584516,2.26508189,83.239,83.205,3.7788611]
[1771791584716,2.26508189,83.239,83.204,10.821]
[1771791585214,2.58867084,83.23,83.204,10.821]
[1771791591417,2.58867084,83.23,83.204,14.5998611]
[1771791594419,2.58867084,83.23,83.205,3.7788611]
[1771791597014,2.26508189,83.239,83.205,3.7788611]
[1771791603427,3.0,83.266,83.18,2.58867084]
[1771791603428,2.25590107,83.229,83.195,3.7788611]
[1771791604228,2.25590107,83.239,83.198,3.7788611]
[1771791604427,2.58867084,83.24,83.198,3.7788611]
[1771791604926,2.24433244,83.249,83.198,3.7788611]
[1771791605126,2.24433244,83.247,83.198,3.7788611]
[1771791605628,2.24433244,83.239,83.198,3.7788611]
[1771791606323,2.24433244,83.239,83.201,3.7788611]
[1771791608530,2.30147893,83.229,83.191,14.57501974]
[1771791608728,2.58733201,83.22,83.192,3.75231974]
[1771791610228,2.58733201,83.23,83.192,3.75231974]
[1771791611131,4.75132449,83.24,83.192,3.75231974]
[1771791611731,2.16399248,83.239,83.192,3.75231974]
[1771791611932,2.58733201,83.23,83.192,3.75231974]
[1771791614133,2.16399248,83.239,83.192,3.75231974]
[1771791615429,2.58733201,83.23,83.192,3.75231974]
[1771791620537,2.58733201,83.23,83.194,3.9251047]
[1771791621030,2.58733201,83.23,83.195,10.8221]
[1771791621235,2.58733201,83.23,83.196,3.9251047]
[1771791628138,2.16438154,83.248,83.205,3.9251047]
[1771791628342,8.92783026,83.247,83.205,3.9251047]
[1771791628640,2.16438154,83.248,83.205,3.9251047]
[1771791628832,8.92746656,83.247,83.205,3.9251047]
[1771791629032,2.16438154,83.248,83.205,3.9251047]
[1771791629234,8.92658231,83.247,83.205,3.9251047]
[1771791629440,2.16438154,83.248,83.205,3.9251047]
[1771791629642,2.13748519,83.246,83.205,3.9251047]
[1771791629842,2.58733201,83.24,83.207,3.9251047]
[1771791630040,2.13748519,83.239,83.191,3.9251047]
[1771791631739,2.13748519,83.239,83.196,3.9251047]
[1771791632734,2.13748519,83.239,83.203,3.9251047]
[1771791633645,2.13748519,83.239,83.204,10.821]
[1771791634545,2.13748519,83.239,83.204,14.7461047]
[1771791634941,2.13748519,83.239,83.21,3.9251047]
[1771791637743,2.13748519,83.239,83.2,3.9251047]
[1771791643552,3.0,83.255,83.205,3.93600308]
[1771791643744,8.92816451,83.254,83.205,3.93600308]
[1771791644043,8.92816451,83.253,83.205,3.93600308]
[1771791644240,2.49394831,83.254,83.205,3.93600308]
[1771791644440,3.0,83.255,83.205,3.93600308]
[1771791644441,11.42109676,83.253,83.205,3.93600308]
[1771791644639,2.49394831,83.253,83.214,10.8197]
[1771791644846,2.49394831,83.253,83.215,3.93600308]
[1771791646444,2.49394831,83.253,83.217,10.8194]
[1771791646749,2.48631395,83.269,83.218,3.93600308]
[1771791646949,2.48627996,83.26,83.221,3.93600308]
[1771791647145,2.48627996,83.26,83.223,3.93600308]
[1771791647347,2.48627996,83.259,83.223,3.93600308]
[1771791648647,2.48627996,83.259,83.225,10.8182]
[1771791648848,2.48627996,83.259,83.226,3.93600308]
[1771791654051,2.58733201,83.27,83.226,3.93600308]
[1771791655756,2.45066962,83.269,83.226,3.93600308]
[1771791679178,2.45066962,83.269,83.227,10.818]
[1771791679376,2.45066962,83.269,83.228,3.90962121]
[1771791688684,2.39729513,83.259,83.227,10.818]
[1771791688984,2.39729513,83.259,83.228,3.90962121]
[1771791702287,2.35076514,83.249,83.214,3.91351626]
[1771791702494,2.35076514,83.229,83.193,3.91351626]
[1771791703792,2.35076514,83.229,83.199,3.91351626]
[1771791713597,3.0,83.264,83.163,22.48023644]
[1771791713598,2.43244557,83.248,83.201,3.91351626]
[1771791713804,499.11723242,83.449,83.221,3.91351626]
[1771791713805,2.43244557,83.263,83.221,3.91351626]
[1771791714599,2.43244557,83.276,83.231,3.91351626]
[1771791722008,2.58582993,83.27,83.231,3.91351626]
[1771791727301,2.58562668,83.27,83.231,3.91351626]
[1771791735818,4.885279,83.27,83.231,3.91351626]
[1771791736419,2.29965232,83.269,83.231,3.91351626]
[1771791745529,2.29916109,83.259,83.231,3.91351626]
[1771791746529,2.58562668,83.24,83.216,3.77581755]
[1771791747432,2.29916109,83.249,83.216,3.77581755]
[1771791781960,2.29916109,83.249,83.206,3.7191703]
[1771791791662,2.55921743,83.247,83.206,3.7191703]
[1771791810781,2.55921743,83.247,83.21,3.77304157]
[1771791827495,8.92761927,83.246,83.21,3.77304157]
[1771791827791,2.58733213,83.26,83.21,3.77304157]
[1771791827792,10.8142,83.257,83.21,3.77304157]
[1771791827992,2.76967765,83.255,83.21,3.77304157]
[1771791828192,2.76967765,83.253,83.21,3.77304157]
[1771791828389,2.76967765,83.251,83.21,3.77304157]
[1771791828693,2.76967765,83.249,83.21,3.77304157]
[1771791828897,2.82830468,83.247,83.21,3.77304157]
[1771791829296,2.82830468,83.245,83.21,3.77304157]
[1771791834494,2.82810351,83.26,83.21,3.77304157]
[1771791834699,8.92882138,83.259,83.221,4.0096556]
[1771791835001,8.92882138,83.258,83.221,4.0096556]
[1771791835202,354.57139691,83.261,83.221,4.0096556]
[1771791835497,8.92948794,83.26,83.221,4.0096556]
[1771791835702,8.92948794,83.259,83.221,4.0096556]
[1771791836003,8.92948794,83.258,83.221,4.0096556]
[1771791836196,354.57139691,83.261,83.221,4.0096556]
[1771791836396,8.92584222,83.26,83.221,4.0096556]
[1771791836699,8.92584222,83.259,83.221,4.0096556]
[1771791837001,354.57139691,83.261,83.221,4.0096556]
[1771791837201,8.92584046,83.26,83.221,4.0096556]
[1771791837401,354.57139691,83.261,83.221,4.0096556]
[1771791837602,8.92440726,83.26,83.221,4.0096556]
[1771791837792,354.57139691,83.261,83.221,4.0096556]
[1771791837993,8.92440726,83.26,83.221,4.0096556]
[1771791838197,354.57139691,83.261,83.221,4.0096556]
[1771791838398,8.92332753,83.26,83.221,4.0096556]
[1771791838599,354.57139691,83.261,83.221,4.0096556]
[1771791838802,11.51052558,83.26,83.221,4.0096556]
[1771791839102,2.58733213,83.26,83.221,4.0096556]
[1771791839598,354.57139691,83.261,83.224,4.0096556]
[1771791839804,3.0,83.267,83.224,4.0096556]
[1771791842397,186.98411763,83.27,83.224,4.0096556]
[1771791843201,173.5842855,83.27,83.23,2.58733213]
[1771791843400,173.5842855,83.27,83.231,4.0096556]
[1771791843600,173.5842855,83.27,83.23,2.58733213]
[1771791843601,2.58733213,83.29,83.241,4.0096556]
[1771791843803,2.9143043,83.292,83.252,4.0096556]
[1771791848812,5.55055019,83.29,83.252,4.0096556]
[1771791850909,2.98990389,83.289,83.252,4.0096556]
[1771791851913,2.98990389,83.289,83.254,3.9609709]
[1771791856604,2.99012212,83.298,83.254,3.9609709]
[1771791868435,2.90487617,83.308,83.262,3.67209155]
[1771791869832,2.80416768,83.318,83.264,3.67209155]
[1771791870132,2.80416768,83.318,83.271,3.67209155]
[1771791870835,2.80416768,83.318,83.272,3.67209155]
[1771791871034,2.58440791,83.32,83.272,3.67209155]
[1771791871331,2.71692597,83.328,83.227,36.06]
[1771791871332,2.71692597,83.328,83.281,3.67209155]
[1771791872037,2.71692597,83.328,83.295,3.67209155]
[1771791872535,2.71692597,83.337,83.295,3.67209155]
[1771791873534,2.58440791,83.33,83.295,3.67209155]
[1771791873730,2.73213923,83.329,83.295,3.67209155]
[1771791882740,2.68897964,83.319,83.286,3.66790133]
[1771791882938,2.71410674,83.299,83.251,3.66790133]
[1771791883635,2.71410674,83.299,83.271,10.8123]
[1771791885544,2.58440791,83.29,83.263,3.66790133]
[1771791886636,7.91e-06,83.29,83.263,3.66790133]
[1771791886843,2.74165853,83.291,83.263,3.66790133]
[1771791888341,2.58440791,83.29,83.263,3.66790133]
[1771791889145,2.74297758,83.289,83.254,3.66790133]
[1771791889746,2.74297758,83.289,83.256,3.66790133]
[1771791889943,2.58440791,83.29,83.256,3.66790133]
[1771791890142,2.74297758,83.298,83.256,3.66790133]
[1771791890349,2.74297758,83.298,83.261,3.66790133]
[1771791890551,2.74297758,83.309,83.261,3.66790133]
[1771791891742,2.74297758,83.309,83.268,3.66790133]
[1771791892747,2.66221786,83.299,83.268,3.66790133]
[1771791893646,2.6478907,83.289,83.256,3.66790133]
[1771791894944,2.58440791,83.28,83.253,10.8146]
[1771791898851,2.6784296,83.279,83.243,10.816]
[1771791899048,2.58440791,83.27,83.243,10.816]
[1771791900146,2.58440791,83.27,83.243,14.48390133]
[1771791900349,2.58440791,83.27,83.244,3.66790133]
[1771791900553,2.6784296,83.279,83.244,3.66790133]
[1771791904261,2.6784296,83.279,83.246,3.66790133]
[1771791907760,2.58440791,83.27,83.229,10.8178]
[1771791907962,3.68494777,83.269,83.229,10.8178]
[1771791909856,3.68494777,83.269,83.23,4.00961356]
[1771791910965,4.01328189,83.249,83.215,10.8195]
[1771791911165,4.01328189,83.249,83.211,4.00961356]
[1771791913472,4.01328189,83.239,83.207,4.00961356]
[1771791915866,3.65505307,83.229,83.194,10.8222]
[1771791916272,3.65505307,83.229,83.194,14.816046]
[1771791922480,3.65505307,83.229,83.195,3.993846]
[1771791922776,3.65505307,83.219,83.185,3.993846]
[1771791929673,3.65505307,83.228,83.185,3.993846]
[1771791934587,3.65505307,83.219,83.185,3.993846]
[1771791935688,3.65505307,83.219,83.169,3.993846]
[1771791936196,3.65505307,83.209,83.169,3.993846]
[1771791937192,2.58706636,83.2,83.169,3.993846]
[1771791937388,3.65505307,83.199,83.151,3.993846]
[1771791944895,3.0,83.237,83.161,3.99612109]
[1771791944896,3.7527213,83.21,83.161,3.99612109]
[1771791946901,14.5731213,83.209,83.161,3.99612109]
[1771791948004,3.7527213,83.208,83.161,3.99612109]
[1771791952003,3.7527213,83.219,83.181,3.99612109]
[1771791956312,3.7527213,83.218,83.181,3.99612109]
[1771791960717,3.7527213,83.209,83.164,3.99612109]
[1771791961017,3.7527213,83.209,83.166,3.99612109]
[1771791963104,3.7527213,83.209,83.168,3.99612109]
[1771791964717,3.7527213,83.209,83.171,3.99612109]
[1771791971022,3.7527213,83.209,83.148,22.48023644]
[1771791971023,2.58706636,83.18,83.136,3.94565462]
[1771791971220,3.91489698,83.189,83.141,3.94565462]
[1771791971515,3.91489698,83.189,83.151,3.94565462]
[1771791981329,3.98843048,83.199,83.151,3.94565462]
[1771791984524,3.98843048,83.184,83.141,4.00026639]
[1771791989235,3.98843048,83.183,83.141,4.00026639]
[1771791997836,3.98843048,83.192,83.151,4.00026639]
[1771791998039,3.98843048,83.192,83.161,4.00026639]
[1771792002343,3.98843048,83.192,83.128,172.2701784]
[1771792002344,3.83134581,83.202,83.171,3.92951242]
[1771792005644,3.83134581,83.197,83.154,3.92951242]
[1771792013245,3.83134581,83.197,83.16,2.59045263]
[1771792013440,3.83134581,83.197,83.161,3.92951242]
[1771792021758,10.8206,83.208,83.128,149.78994196]
[1771792021759,3.83134581,83.208,83.171,3.92951242]
[1771792022460,3.83134581,83.199,83.162,3.92951242]
[1771792037874,3.73874494,83.212,83.162,3.92951242]
[1771792038069,3.73874494,83.209,83.162,3.92951242]
[1771792040172,3.73874494,83.207,83.162,3.92951242]
[1771792042276,3.73874494,83.205,83.162,3.92951242]
[1771792048578,2.59016927,83.21,83.164,3.98836088]
[1771792048878,3.0,83.222,83.171,3.98836088]
[1771792048879,3.73874494,83.212,83.171,3.98836088]
[1771792051883,3.73874494,83.212,83.173,3.98836088]
[1771792052378,2.59016927,83.21,83.173,3.98836088]
[1771792052680,3.73874494,83.209,83.173,3.98836088]
[1771792089705,3.73874494,83.209,83.166,10.826]
[1771792089706,3.73874494,83.209,83.167,3.95501202]
[1771792091307,2.59016927,83.2,83.167,3.95501202]
[1771792091611,3.80936471,83.199,83.167,3.95501202]
[1771792093809,3.80936471,83.199,83.158,3.95501202]
[1771792095510,3.89974397,83.209,83.161,4.03839018]
[1771792096711,3.89974397,83.209,83.165,4.03839018]
[1771792097207,463.32878091,83.214,83.171,4.03839018]
[1771792098713,463.32878091,83.214,83.177,4.03839018]
[1771792101910,3.89974397,83.22,83.18,4.03839018]
[1771792102112,3.89974397,83.22,83.181,4.03839018]
[1771792108427,3.89974397,83.22,83.183,4.03839018]
[1771792109925,3.89974397,83.219,83.183,4.03839018]
[1771792116327,3.89974397,83.219,83.174,4.03839018]
[1771792118529,3.89974397,83.219,83.176,3.72266929]
[1771792135242,3.89974397,83.219,83.184,3.72266929]
[1771792136640,3.89974397,83.219,83.185,10.8235]
[1771792136945,3.89974397,83.219,83.186,3.72266929]
[1771792198897,3.89974397,83.219,83.184,3.87267899]
[1771792202293,3.93097406,83.229,83.19,2.58872492]
[1771792202601,3.93097406,83.229,83.201,3.87267899]
[1771792203392,11.23324631,83.251,83.172,321.01917891]
[1771792203393,3.93097406,83.219,83.172,321.01917891]
[1771792203598,3.93097406,83.219,83.173,3.87267899]
[1771792203899,3.93097406,83.217,83.173,3.87267899]
[1771792204099,3.93097406,83.215,83.173,3.87267899]
[1771792208202,3.93097406,83.215,83.172,321.01917891]
[1771792208203,3.87840316,83.209,83.172,321.01917891]
[1771792208405,3.87840316,83.199,83.153,3.71976644]
[1771792208697,3.87840316,83.197,83.153,3.71976644]
[1771792211004,3.87840316,83.197,83.161,3.71976644]
[1771792212005,3.87840316,83.197,83.17,2.58872492]
[1771792212794,3.87840316,83.197,83.171,3.71976644]
[1771792215704,3.87840316,83.197,83.161,3.88689276]
[1771792225209,3.87840316,83.197,83.151,3.88689276]
[1771792225510,3.91026382,83.189,83.151,3.88689276]
[1771792228407,3.91026382,83.179,83.142,14.71589276]
[1771792228804,3.91026382,83.179,83.142,3.88689276]
[1771792229405,3.91026382,83.179,83.133,10.8302]
[1771792230011,3.91026382,83.179,83.133,14.71709276]
[1771792230910,3.91026382,83.179,83.133,3.88689276]
[1771792231407,3.91026382,83.169,83.133,3.88689276]
[1771792236805,3.91026382,83.169,83.123,10.8316]
[1771792237010,3.91026382,83.149,83.116,3.88689276]
[1771792239615,3.91026382,83.149,83.12,2.59011082]
[1771792239816,3.91026382,83.149,83.121,3.75484928]
[1771792258532,3.91026382,83.149,83.115,3.75484928]
[1771792258740,3.91026382,83.149,83.101,3.75484928]
[1771792259840,3.91026382,83.149,83.103,3.75484928]
[1771792261040,3.91026382,83.149,83.105,3.75484928]
[1771792268647,11.23324631,83.184,83.084,327.1940238]
[1771792268648,2.59011082,83.14,83.096,3.76372678]
[1771792268949,3.70726836,83.139,83.096,3.76372678]
[1771792272049,3.70726836,83.139,83.1,2.59011082]
[1771792272948,3.70726836,83.139,83.1,6.3538376]
[1771792273251,3.70726836,83.139,83.101,3.76372678]
[1771792283362,3.920823,83.149,83.101,3.76372678]
[1771792284660,3.920823,83.147,83.101,3.76372678]
[1771792293973,3.920823,83.145,83.101,3.76372678]
[1771792299379,3.98450037,83.142,83.101,3.76372678]
[1771792299878,3.98450037,83.139,83.101,3.76372678]
[1771792309388,3.98450037,83.148,83.104,3.8907958]
[1771792309591,10.8276,83.154,83.104,3.8907958]
[1771792309985,10.8276,83.154,83.111,3.8907958]
[1771792310191,470.93421126,83.156,83.113,3.8907958]
[1771792311988,3.98450037,83.155,83.113,3.8907958]
[1771792315695,3.98450037,83.155,83.115,3.8907958]
[1771792320395,2.59377092,83.17,83.128,3.8907958]
[1771792320698,3.98450037,83.185,83.141,3.8907958]
[1771792333812,2.59377092,83.2,83.151,3.65735096]
[1771792334011,3.82811081,83.199,83.151,3.65735096]
[1771792346324,3.82811081,83.199,83.153,3.96990061]
[1771792346522,3.82811081,83.199,83.161,3.96990061]
[1771792350229,460.03437132,83.207,83.17,2.59035614]
[1771792350422,460.03437132,83.207,83.171,3.96990061]
[1771792350629,3.7607617,83.179,83.113,3.96990061]
[1771792350827,6.35111784,83.15,83.113,3.96990061]
[1771792351027,2.59035614,83.14,83.113,3.96990061]
[1771792351523,3.7607617,83.15,83.113,3.96990061]
[1771792351524,6.35111784,83.15,83.113,3.96990061]
[1771792351723,3.7607617,83.149,83.113,3.96990061]
[1771792351924,11.1575562,83.2,83.084,349.67426024]
[1771792351925,2.59035614,83.17,83.124,3.96990061]
[1771792352732,2.59035614,83.17,83.135,3.96990061]
[1771792354427,3.7607617,83.178,83.135,3.96990061]
[1771792357935,3.7607617,83.178,83.138,3.96990061]
[1771792363738,3.83059779,83.175,83.094,3.854903]
[1771792363943,21.6413,83.208,83.094,3.854903]
[1771792363944,3.83059779,83.139,83.094,3.854903]
[1771792365843,3.83059779,83.139,83.096,3.854903]
[1771792366545,3.83059779,83.129,83.096,3.854903]
[1771792376150,3.83059779,83.129,83.087,3.854903]
[1771792377053,3.83059779,83.129,83.088,10.8361]
[1771792378952,3.83059779,83.129,83.088,14.691003]
[1771792380358,3.83059779,83.129,83.089,3.854903]
[1771792380757,3.83059779,83.129,83.08,2.59035614]
[1771792380957,3.83059779,83.129,83.08,6.44525914]
[1771792381755,3.83059779,83.129,83.081,3.854903]
[1771792391368,3.83059779,83.129,83.09,2.59035614]
[1771792391568,3.83059779,83.129,83.091,3.80846289]
[1771792414988,3.69706866,83.128,83.091,3.80846289]
[1771792415188,3.69706866,83.126,83.071,3.84011299]
[1771792415781,3.69706866,83.126,83.081,3.84011299]
[1771792423794,3.69706866,83.126,83.083,3.94503589]
[1771792425695,3.69706866,83.126,83.092,3.94503589]
[1771792443513,4.01643642,83.139,83.11,6.53967263]
[1771792443814,4.01643642,83.139,83.111,3.94503589]
[1771792444211,4.01643642,83.139,83.1,318.27684641]
[1771792445212,4.01643642,83.139,83.1,322.2218823]
[1771792445612,4.01643642,83.139,83.101,3.94503589]
[1771792466333,3.74451815,83.148,83.111,3.79658598]
[1771792466529,471.09413526,83.152,83.121,3.79658598]
[1771792469036,471.09413526,83.152,83.13,2.59363074]
[1771792470637,471.09413526,83.152,83.121,3.79658598]
[1771792481643,3.74451815,83.155,83.121,3.79658598]
[1771792486546,2.59363074,83.17,83.121,3.79658598]
[1771792486842,10.8249,83.175,83.121,3.79658598]
[1771792486843,4.04536691,83.169,83.121,3.79658598]
[1771792488844,4.04536691,83.169,83.13,2.59363074]
[1771792489544,4.04536691,83.169,83.121,3.79658598]
[1771792497844,250.81862487,83.177,83.141,3.86615838]
[1771792498745,250.81862487,83.177,83.142,3.86615838]
[1771792500451,4.04536691,83.187,83.15,2.59363074]
[1771792500752,4.04536691,83.187,83.151,3.86615838]
[1771792502648,10.8222,83.195,83.151,3.86615838]
[1771792503051,4.04536691,83.194,83.151,3.86615838]
[1771792514652,4.04536691,83.194,83.16,6.48465091]